bitfinex/quotes_SOLUSD_20250805
["timestamp","ask_amount","ask_price","bid_price","bid_amount"]
[1754397348977,0.72,168.55,168.52,43.68]
[1754397349679,0.72,168.57,168.52,43.68]
[1754397350479,5.93154991,168.59,168.52,43.68]
[1754397350480,0.72,168.56,168.52,43.68]
[1754397351000,0.72,168.58,168.52,43.68]
[1754397352277,5.93225366,168.57,168.52,43.68]
[1754397352581,0.72,168.56,168.52,43.68]
[1754397352788,10.13812336,168.53,168.52,43.68]
[1754397352987,10.85812336,168.53,168.5,43.66]
[1754397353185,10.13812336,168.51,168.5,43.66]
[1754397353781,10.85812336,168.51,168.47,0.2]
[1754397353990,10.13812336,168.48,168.47,0.2]
[1754397354486,5.93366166,168.53,168.47,0.2]
[1754397354673,10.13812336,168.49,168.47,0.92]
[1754397354885,10.13812336,168.5,168.47,0.92]
[1754397355090,10.13812336,168.5,168.48,0.72]
[1754397355479,10.13812336,168.5,168.47,0.2]
[1754397355684,10.13812336,168.49,168.47,0.2]
[1754397356109,10.13812336,168.48,168.47,0.2]
[1754397357708,10.13812336,168.49,168.47,0.92]
[1754397358202,10.13812336,168.49,168.47,0.2]
[1754397358385,10.13812336,168.48,168.47,0.2]
[1754397359409,10.13812336,168.49,168.47,0.2]
[1754397360276,10.13812336,168.48,168.47,0.2]
[1754397361404,0.7,168.55,168.47,6.79577491]
[1754397361595,10.13812336,168.52,168.47,6.79577491]
[1754397361798,10.13812336,168.51,168.48,0.66]
[1754397362003,10.13812336,168.51,168.49,43.66]
[1754397362399,10.13812336,168.5,168.49,43.66]
[1754397362605,10.13812336,168.5,168.48,43.66]
[1754397362789,10.13812336,168.49,168.48,43.66]
[1754397362984,10.13812336,168.51,168.48,44.32]
[1754397363905,6.6326056,168.56,168.49,0.66]
[1754397364108,10.13812336,168.51,168.48,43.66]
[1754397364310,10.13812336,168.5,168.48,43.66]
[1754397364511,16.0728659,168.5,168.48,43.66]
[1754397364809,16.0728659,168.5,168.47,0.2]
[1754397364810,10.13812336,168.49,168.47,0.2]
[1754397365109,10.13812336,168.48,168.47,0.2]
[1754397365405,10.13812336,168.49,168.47,0.2]
[1754397365607,158.33812336,168.5,168.47,0.86]
[1754397365805,148.2,168.5,168.48,0.66]
[1754397366006,158.33812336,168.5,168.47,0.2]
[1754397366192,10.13812336,168.49,168.47,0.2]
[1754397367604,10.83812336,168.49,168.47,0.2]
[1754397367805,10.13812336,168.49,168.47,0.2]
[1754397368333,148.2,168.5,168.47,0.86]
[1754397368334,164.27285608,168.5,168.47,0.86]
[1754397368517,10.13812336,168.49,168.47,0.2]
[1754397368895,154.83473272,168.5,168.47,0.2]
[1754397368896,159.03812336,168.48,168.47,0.2]
[1754397370393,164.97354596,168.48,168.47,0.2]
[1754397370593,154.8354226,168.48,168.42,43.66]
[1754397370804,10.13812336,168.46,168.42,43.66]
[1754397371005,10.13812336,168.45,168.42,43.66]
[1754397371207,10.13812336,168.44,168.38,42.86216157]
[1754397371497,148.2,168.43,168.4,43.66]
[1754397371692,148.2,168.43,168.4,53.79812336]
[1754397371914,148.2,168.43,168.41,10.13812336]
[1754397372216,5.9354226,168.48,168.42,10.13812336]
[1754397372217,10.13812336,168.48,168.42,10.13812336]
[1754397372415,10.13812336,168.48,168.43,10.13812336]
[1754397372593,10.13812336,168.48,168.44,43.66]
[1754397373303,10.13812336,168.48,168.44,44.32]
[1754397373821,10.13812336,168.51,168.46,10.13812336]
[1754397374195,0.7,168.52,168.46,10.13812336]
[1754397374421,10.13812336,168.52,168.47,10.79812336]
[1754397374722,0.7,168.52,168.48,43.64]
[1754397374900,10.13812336,168.51,168.48,43.64]
[1754397375410,5.93366166,168.53,168.48,54.43812336]
[1754397375411,10.13812336,168.53,168.48,54.43812336]
[1754397375611,10.13812336,168.53,168.49,0.66]
[1754397375809,5.93334499,168.54,168.49,0.66]
[1754397376017,6.63334499,168.54,168.48,44.3]
[1754397376215,10.13812336,168.52,168.48,44.3]
[1754397376392,10.13812336,168.51,168.48,49.57535364]
[1754397377121,10.13812336,168.5,168.46,43.64]
[1754397377306,10.13812336,168.49,168.46,43.64]
[1754397377506,10.13812336,168.47,168.46,43.64]
[1754397377704,10.13812336,168.47,168.42,16.07542938]
[1754397377919,10.13812336,168.48,168.44,43.64]
[1754397378114,10.83812336,168.48,168.44,43.64]
[1754397378521,16.77370587,168.48,168.44,43.64]
[1754397378731,10.13812336,168.46,168.44,43.64]
[1754397379101,10.83812336,168.46,168.44,43.64]
[1754397379304,0.7,168.46,168.44,43.64]
[1754397379524,10.13812336,168.46,168.44,43.64]
[1754397379736,10.13812336,168.45,168.44,43.64]
[1754397380732,10.13812336,168.46,168.44,43.64]
[1754397381226,10.83812336,168.46,168.44,43.64]
[1754397381405,10.13812336,168.46,168.44,43.64]
[1754397381608,148.2,168.47,168.44,44.3]
[1754397381927,158.33812336,168.47,168.44,43.64]
[1754397382916,148.2,168.47,168.44,50.23679204]
[1754397383358,158.33812336,168.47,168.44,43.64]
[1754397383517,158.33812336,168.47,168.44,49.57676524]
[1754397383841,148.2,168.47,168.44,50.23676524]
[1754397385146,148.2,168.47,168.44,43.64]
[1754397385434,10.13812336,168.45,168.42,43.64]
[1754397385605,10.13812336,168.43,168.37,10.13812336]
[1754397385937,10.13812336,168.42,168.38,43.64]
[1754397386225,10.83812336,168.42,168.38,43.64]
[1754397386428,10.83812336,168.41,168.35,5.94000594]
[1754397386615,10.83812336,168.41,168.36,43.64]
[1754397386810,10.83812336,168.41,168.37,5.93930035]
[1754397387210,158.33812336,168.44,168.38,10.79812336]
[1754397387418,158.33812336,168.44,168.39,43.64]
[1754397387612,10.13812336,168.43,168.39,43.64]
[1754397388014,10.13812336,168.42,168.39,43.64]
[1754397388213,10.83812336,168.41,168.39,43.64]
[1754397388413,10.13812336,168.41,168.39,43.64]
[1754397388609,10.83812336,168.41,168.39,43.64]
[1754397389018,10.13812336,168.41,168.39,43.64]
[1754397389621,10.13812336,168.42,168.39,43.64]
[1754397389918,10.85812336,168.42,168.39,43.64]
[1754397390236,5.9373822,168.43,168.39,43.64]
[1754397390237,10.85812336,168.41,168.39,43.64]
[1754397390538,6.6573822,168.43,168.39,43.64]
[1754397390713,0.72,168.43,168.39,43.64]
[1754397391035,148.2,168.42,168.39,43.64]
[1754397391233,148.2,168.42,168.39,49.57856976]
[1754397391614,148.2,168.42,168.39,43.64]
[1754397392227,148.92,168.42,168.39,43.64]
[1754397392429,10.13812336,168.4,168.39,43.64]
[1754397393326,10.13812336,168.4,168.37,43.62]
[1754397393724,10.85812336,168.4,168.37,43.62]
[1754397394348,0.72,168.4,168.37,43.62]
[1754397394525,10.85812336,168.4,168.37,43.62]
[1754397394732,10.85812336,168.4,168.33,0.2]
[1754397394733,10.13812336,168.38,168.33,0.2]
[1754397395048,148.92,168.39,168.34,43.62]
[1754397395237,10.13812336,168.35,168.34,43.62]
[1754397395653,10.13812336,168.35,168.33,0.2]
[1754397395654,10.85812336,168.35,168.33,0.2]
[1754397395870,0.72,168.34,168.33,0.2]
[1754397396036,10.85812336,168.34,168.33,0.2]
[1754397397231,0.72,168.34,168.33,0.2]
[1754397397533,10.85812336,168.34,168.33,0.2]
[1754397397948,60.41848215,168.34,168.33,0.2]
[1754397398240,54.47812336,168.34,168.33,0.2]
[1754397398430,58.75558862,168.34,168.33,0.2]
[1754397399552,54.47812336,168.34,168.33,0.2]
[1754397399852,60.41848215,168.34,168.3,0.2]
[1754397400037,10.13812336,168.31,168.3,0.2]
[1754397400533,0.72,168.35,168.3,6.8116473]
[1754397400849,0.72,168.4,168.34,10.13812336]
[1754397401155,10.13812336,168.4,168.35,10.80812336]
[1754397401449,10.13812336,168.39,168.36,5.93965312]
[1754397401650,10.13812336,168.38,168.32,0.67]
[1754397401861,10.13812336,168.33,168.31,5.94141762]
[1754397402037,10.13812336,168.32,168.3,49.76166241]
[1754397402453,0.72,168.38,168.31,10.80812336]
[1754397402656,10.13812336,168.4,168.35,10.13812336]
[1754397402952,10.13812336,168.41,168.36,0.67]
[1754397403151,10.13812336,168.39,168.35,43.62]
[1754397403448,10.13812336,168.39,168.35,49.55977888]
[1754397403652,10.13812336,168.42,168.37,10.13812336]
[1754397403954,10.13812336,168.42,168.37,10.80812336]
[1754397404155,10.13812336,168.41,168.37,0.67]
[1754397404661,10.13812336,168.42,168.38,0.67]
[1754397405042,10.13812336,168.41,168.36,10.80812336]
[1754397405251,10.13812336,168.39,168.35,49.55977888]
[1754397405461,0.72,168.43,168.36,10.80812336]
[1754397405687,10.13812336,168.45,168.4,10.13812336]
[1754397405839,5.93575133,168.48,168.37,0.81216157]
[1754397405840,10.13812336,168.43,168.37,0.81216157]
[1754397406044,10.85812336,168.44,168.39,10.13812336]
[1754397406341,5.93575133,168.48,168.37,0.81216157]
[1754397406342,10.85812336,168.43,168.38,10.13812336]
[1754397406541,10.13812336,168.44,168.39,10.80812336]
[1754397407061,10.85812336,168.44,168.39,10.13812336]
[1754397407263,10.85812336,168.44,168.4,5.93824228]
[1754397407470,0.72,168.47,168.4,16.74636564]
[1754397407672,10.13812336,168.46,168.41,10.13812336]
[1754397407969,0.72,168.49,168.42,0.67]
[1754397408154,10.85812336,168.46,168.41,10.13812336]
[1754397408352,10.13812336,168.45,168.4,49.55824228]
[1754397408564,10.13812336,168.44,168.4,49.55824228]
[1754397408761,10.85812336,168.45,168.4,59.69636564]
[1754397408975,10.13812336,168.45,168.4,60.36636564]
[1754397409271,10.13812336,168.46,168.42,5.9375371]
[1754397409646,10.13812336,168.45,168.41,5.93783803]
[1754397410043,0.72,168.47,168.41,5.93783803]
[1754397410248,10.13812336,168.45,168.41,5.93783803]
[1754397410665,10.13812336,168.44,168.41,5.93783803]
[1754397410852,10.13812336,168.45,168.41,5.93783803]
[1754397411371,10.13812336,168.46,168.41,16.74596139]
[1754397412064,0.72,168.47,168.41,16.74596139]
[1754397412278,10.13812336,168.45,168.41,5.93783803]
[1754397412571,10.13812336,168.42,168.37,43.6]
[1754397412753,10.13812336,168.39,168.37,43.6]
[1754397412953,10.13812336,168.38,168.37,43.6]
[1754397413673,10.13812336,168.38,168.36,5.93965312]
[1754397414283,10.13812336,168.39,168.35,5.94000594]
[1754397414982,10.13812336,168.37,168.34,43.6]
[1754397415166,10.13812336,168.36,168.34,49.54026189]
[1754397415366,10.13812336,168.36,168.34,43.6]
[1754397415561,0.72,168.36,168.34,43.6]
[1754397415958,10.13812336,168.35,168.34,43.6]
[1754397416389,10.13812336,168.36,168.34,43.6]
[1754397416981,0.72,168.41,168.34,43.6]
[1754397417154,10.13812336,168.35,168.34,43.6]
[1754397417360,10.13812336,168.35,168.3,0.2]
[1754397417561,0.72,168.38,168.31,50.19118678]
[1754397417872,10.13812336,168.35,168.31,50.19118678]
[1754397418070,10.13812336,168.36,168.32,0.67]
[1754397418272,10.13812336,168.36,168.33,6.61043028]
[1754397419155,10.13812336,168.35,168.32,5.94095841]
[1754397419359,10.13812336,168.34,168.32,5.94095841]
[1754397419572,10.13812336,168.33,168.31,49.5213878]
[1754397419773,10.84812336,168.33,168.31,49.5213878]
[1754397420069,0.71,168.33,168.31,43.58]
[1754397420279,10.13812336,168.33,168.31,49.52129016]
[1754397420862,10.13812336,168.33,168.31,43.58]
[1754397421584,10.84812336,168.33,168.31,43.58]
[1754397421762,10.84812336,168.32,168.3,0.2]
[1754397421962,10.13812336,168.31,168.3,0.2]
[1754397422163,10.13812336,168.32,168.3,0.2]
[1754397422373,0.71,168.34,168.3,49.72157609]
[1754397422374,158.33812336,168.34,168.3,49.72157609]
[1754397422580,158.33812336,168.34,168.3,50.38157609]
[1754397422788,158.33812336,168.34,168.3,60.51969945]
[1754397423093,148.2,168.34,168.3,60.51969945]
[1754397423408,148.2,168.34,168.31,10.13812336]
[1754397423594,148.2,168.34,168.3,60.49969945]
[1754397423887,148.2,168.34,168.31,10.79812336]
[1754397424094,148.2,168.34,168.3,49.70157609]
[1754397424095,159.04812336,168.34,168.3,49.70157609]
[1754397424462,0.71,168.33,168.3,49.70157609]
[1754397424684,158.33812336,168.34,168.3,49.70157609]
[1754397424891,148.2,168.34,168.3,59.83969945]
[1754397425089,0.71,168.33,168.3,49.70157609]
[1754397425476,164.2787054,168.34,168.3,0.18]
[1754397425680,10.13812336,168.32,168.3,0.18]
[1754397426378,10.84812336,168.32,168.3,0.18]
[1754397426692,0.71,168.32,168.3,0.18]
[1754397426870,10.13812336,168.32,168.3,0.18]
[1754397427069,10.84812336,168.32,168.3,0.18]
[1754397427290,0.71,168.32,168.3,0.18]
[1754397427978,159.04812336,168.31,168.3,0.18]
[1754397428295,10.84812336,168.31,168.3,0.18]
[1754397428680,10.13812336,168.31,168.3,0.18]
[1754397428999,10.84812336,168.31,168.3,0.18]
[1754397430579,16.78954098,168.31,168.3,0.18]
[1754397431272,10.84812336,168.31,168.3,0.18]
[1754397431704,10.13812336,168.33,168.3,0.18]
[1754397431884,0.71,168.37,168.32,10.13812336]
[1754397432089,10.84812336,168.36,168.31,53.71812336]
[1754397432290,10.13812336,168.36,168.31,53.71812336]
[1754397432598,10.13812336,168.32,168.3,0.18]
[1754397432795,10.13812336,168.33,168.3,0.18]
[1754397432977,10.13812336,168.33,168.3,6.12175317]
[1754397433300,10.13812336,168.36,168.31,10.79812336]
[1754397433511,0.71,168.37,168.32,44.24]
[1754397434008,0.71,168.37,168.33,10.13812336]
[1754397434169,10.84812336,168.36,168.32,43.58]
[1754397434593,10.13812336,168.38,168.33,16.73883505]
[1754397435200,10.84812336,168.37,168.32,59.65914693]
[1754397435505,10.13812336,168.36,168.32,43.58]
[1754397435691,10.13812336,168.33,168.3,0.18]
[1754397435871,0.71,168.35,168.3,0.18]
[1754397436078,10.84812336,168.34,168.3,0.18]
[1754397436275,10.13812336,168.32,168.3,0.18]
[1754397436797,10.84812336,168.32,168.3,0.18]
[1754397437184,0.71,168.31,168.3,0.18]
[1754397437894,10.84812336,168.31,168.3,0.18]
[1754397438414,0.71,168.31,168.3,0.18]
[1754397438982,16.78954098,168.31,168.3,0.18]
[1754397439614,10.84812336,168.31,168.3,0.18]
[1754397439809,16.78954098,168.31,168.3,0.18]
[1754397440312,21.07265763,168.31,168.3,0.18]
[1754397441316,39.77748433,168.31,168.22,43.58]
[1754397441487,10.13812336,168.26,168.22,49.52444769]
[1754397441687,10.84812336,168.26,168.22,43.58]
[1754397441995,10.13812336,168.25,168.2,10.13812336]
[1754397442302,10.13812336,168.22,168.17,60.30448715]
[1754397442504,0.71,168.24,168.14,15.30621557]
[1754397442505,0.71,168.21,168.14,0.2]
[1754397442713,10.13812336,168.15,168.14,0.2]
[1754397443719,16.79519442,168.15,168.14,0.2]
[1754397444011,6.65707106,168.15,168.14,0.2]
[1754397444211,16.79519442,168.15,168.14,0.2]
[1754397444401,10.84812336,168.15,168.14,0.2]
[1754397444793,16.79519442,168.15,168.14,0.2]
[1754397445035,50.23707106,168.15,168.14,0.2]
[1754397445335,10.13812336,168.16,168.14,0.2]
[1754397445687,53.71812336,168.17,168.14,0.2]
[1754397445995,10.13812336,168.15,168.14,0.2]
[1754397446312,0.71,168.19,168.14,0.2]
[1754397446510,5.94494976,168.21,168.14,0.2]
[1754397446511,26.0,168.17,168.14,0.2]
[1754397446693,0.71,168.16,168.14,0.2]
[1754397446882,10.13812336,168.18,168.14,0.2]
[1754397447098,10.84812336,168.19,168.14,0.2]
[1754397447302,10.13812336,168.2,168.15,10.79812336]
[1754397447501,10.13812336,168.17,168.14,0.2]
[1754397447698,10.13812336,168.15,168.14,0.2]
[1754397447900,0.71,168.2,168.14,10.33812336]
[1754397448212,10.13812336,168.21,168.15,0.66]
[1754397448508,5.94459636,168.22,168.14,6.14733369]
[1754397448692,0.71,168.21,168.14,16.28545705]
[1754397448892,15.24837714,168.28,168.14,16.28545705]
[1754397448893,0.71,168.27,168.15,0.7]
[1754397449092,14.38537203,168.26,168.17,26.0]
[1754397449326,4.24724867,168.25,168.22,10.13812336]
[1754397449488,10.13812336,168.28,168.23,0.7]
[1754397449815,4.24595482,168.27,168.23,0.7]
[1754397450109,4.24595482,168.27,168.25,10.13812336]
[1754397450310,0.71,168.32,168.24,0.7]
[1754397450311,0.71,168.32,168.24,0.14216157]
[1754397450511,10.18717083,168.31,168.23,54.89812336]
[1754397450817,0.71,168.32,168.14,90.49014324]
[1754397450818,10.13812336,168.24,168.18,50.86600738]
[1754397451113,10.13812336,168.21,168.18,44.92]
[1754397451295,10.13812336,168.21,168.15,10.13812336]
[1754397451296,10.13812336,168.19,168.15,0.7]
[1754397451498,10.13812336,168.24,168.14,0.2]
[1754397451814,10.13812336,168.15,168.14,0.2]
[1754397452313,70.3,168.23,168.14,0.2]
[1754397452314,0.71,168.18,168.14,0.2]
[1754397452618,10.13812336,168.15,168.14,0.2]
[1754397453915,10.13812336,168.16,168.14,0.2]
[1754397454290,10.13812336,168.15,168.14,0.2]
[1754397454512,0.71,168.16,168.14,0.2]
[1754397454688,10.13812336,168.15,168.14,0.2]
[1754397454887,10.84812336,168.15,168.14,0.2]
[1754397455088,10.13812336,168.18,168.14,0.2]
[1754397455322,10.13812336,168.16,168.14,0.2]
[1754397455505,10.13812336,168.15,168.14,0.2]
[1754397456410,10.13812336,168.16,168.14,0.2]
[1754397456609,148.2,168.17,168.15,0.7]
[1754397456808,148.2,168.17,168.15,6.64702267]
[1754397457221,148.2,168.17,168.16,0.7]
[1754397457392,148.2,168.17,168.15,16.78514603]
[1754397457899,148.2,168.17,168.15,16.08514603]
[1754397458093,148.2,168.17,168.16,10.83812336]
[1754397458616,159.04812336,168.17,168.14,0.2]
[1754397458828,148.91,168.17,168.14,0.2]
[1754397459015,159.04812336,168.17,168.14,0.2]
[1754397459320,10.13812336,168.15,168.14,0.2]
[1754397459501,148.2,168.16,168.14,0.2]
[1754397459703,158.33812336,168.16,168.14,0.2]
[1754397459911,148.2,168.16,168.14,0.2]
[1754397460215,148.2,168.16,168.14,6.14730181]
[1754397460443,10.84812336,168.15,168.14,0.2]
[1754397461020,0.71,168.15,168.14,0.2]
[1754397461202,10.84812336,168.15,168.14,0.2]
[1754397461518,10.13812336,168.15,168.14,0.2]
[1754397462014,10.84812336,168.15,168.14,0.2]
[1754397462520,148.2,168.16,168.14,0.2]
[1754397462688,10.13812336,168.15,168.14,0.2]
[1754397463405,10.84812336,168.15,168.14,0.2]
[1754397463720,16.79519442,168.15,168.14,0.2]
[1754397464618,44.14,168.18,168.14,0.2]
[1754397464619,0.71,168.18,168.14,0.2]
[1754397464926,10.13812336,168.17,168.14,0.2]
[1754397465413,10.13812336,168.17,168.14,6.1474212]
[1754397465614,10.13812336,168.17,168.14,0.2]
[1754397465615,10.13812336,168.16,168.14,0.2]
[1754397465933,10.84812336,168.16,168.14,0.2]
[1754397466113,0.71,168.17,168.14,0.2]
[1754397466321,10.13812336,168.17,168.14,6.14740655]
[1754397466499,10.13812336,168.18,168.14,6.84740655]
[1754397466910,6.65501467,168.21,168.14,6.84740655]
[1754397467113,10.13812336,168.19,168.15,0.7]
[1754397467312,10.13812336,168.19,168.14,16.28552991]
[1754397467621,10.13812336,168.17,168.14,0.2]
[1754397467810,10.13812336,168.17,168.14,6.1474034]
[1754397468007,10.84812336,168.17,168.14,0.2]
[1754397468212,0.71,168.17,168.14,0.2]
[1754397468521,10.13812336,168.18,168.14,0.9]
[1754397468736,10.13812336,168.16,168.14,0.2]
[1754397469253,10.13812336,168.15,168.14,0.2]
[1754397469396,10.84812336,168.15,168.14,0.2]
[1754397470224,0.71,168.15,168.14,0.2]
[1754397470415,10.84812336,168.15,168.14,0.2]
[1754397471629,10.13812336,168.15,168.14,0.2]
[1754397472426,0.71,168.15,168.14,0.2]
[1754397472621,10.84812336,168.15,168.14,0.2]
[1754397473024,16.79519442,168.15,168.14,0.2]
[1754397473904,65.00526543,168.15,168.14,0.2]
[1754397474103,10.84812336,168.15,168.14,0.2]
[1754397474314,16.79519442,168.15,168.14,0.2]
[1754397474541,0.71,168.15,168.14,0.2]
[1754397475037,10.13812336,168.15,168.14,0.2]
[1754397475210,16.79519442,168.15,168.14,0.2]
[1754397476936,43.96,168.18,168.14,0.2]
[1754397476937,0.71,168.18,168.14,0.2]
[1754397477242,14.86206122,168.22,168.14,0.2]
[1754397477243,0.71,168.17,168.14,0.2]
[1754397477446,10.13812336,168.17,168.14,0.2]
[1754397477753,10.13812336,168.16,168.14,0.2]
[1754397478127,10.84812336,168.16,168.14,0.2]
[1754397478326,0.71,168.16,168.14,0.2]
[1754397478643,10.84812336,168.16,168.14,0.2]
[1754397479449,16.08487968,168.16,168.14,0.2]
[1754397479749,16.75487968,168.16,168.14,0.2]
[1754397480345,5.94644822,168.17,168.14,0.2]
[1754397480546,148.2,168.19,168.16,10.13812336]
[1754397480753,148.2,168.19,168.18,10.13812336]
[1754397480968,13.14638174,168.26,168.18,10.84812336]
[1754397481116,16.08169867,168.25,168.2,10.13812336]
[1754397481322,10.13812336,168.24,168.2,10.13812336]
[1754397481537,0.67,168.25,168.21,10.13812336]
[1754397481737,7.20290492,168.26,168.19,5.94565669]
[1754397481959,10.13812336,168.23,168.18,10.13812336]
[1754397482119,10.13812336,168.22,168.17,16.08444009]
[1754397482322,10.13812336,168.22,168.16,44.55]
[1754397482323,10.13812336,168.2,168.16,43.84]
[1754397482948,10.13812336,168.2,168.17,10.138123]
[1754397483248,65.90086284,168.26,168.16,59.9247973]
[1754397483476,10.13812336,168.21,168.16,49.78667394]
[1754397483639,10.13812336,168.21,168.16,53.97812336]
[1754397483831,10.13812336,168.19,168.16,43.84]
[1754397484023,10.13812336,168.2,168.16,43.84]
[1754397484431,4.2817241,168.19,168.16,43.84]
[1754397484841,10.13812336,168.18,168.16,43.84]
[1754397485056,10.13812336,168.18,168.14,0.2]
[1754397485235,10.13812336,168.15,168.14,0.2]
[1754397485440,14.42348622,168.15,168.14,0.2]
[1754397485849,4.28536286,168.15,168.14,0.2]
[1754397486044,148.2,168.19,168.14,11.04812336]
[1754397486247,0.67,168.28,168.18,10.13812336]
[1754397486452,4.28971186,168.25,168.19,0.71]
[1754397486653,10.13812336,168.22,168.16,10.19812336]
[1754397486843,4.95971186,168.24,168.16,10.19812336]
[1754397486844,14.42783522,168.21,168.16,10.19812336]
[1754397487139,4.28971186,168.2,168.16,10.90812336]
[1754397487340,16.08275181,168.22,168.16,16.85458908]
[1754397487555,4.29100271,168.21,168.17,10.13812336]
[1754397487733,10.13812336,168.22,168.17,0.71]
[1754397487934,4.9611208,168.21,168.16,0.06]
[1754397488153,4.2911208,168.2,168.16,0.06]
[1754397488435,14.42924416,168.19,168.16,0.06]
[1754397488644,4.2911208,168.18,168.16,10.90812336]
[1754397488957,0.67,168.22,168.16,10.90812336]
[1754397488958,10.13812336,168.21,168.16,10.90812336]
[1754397489159,14.42887952,168.2,168.16,0.06]
[1754397489351,14.42887952,168.19,168.16,0.06]
[1754397489533,4.29075616,168.18,168.16,0.06]
[1754397489733,10.13812336,168.19,168.16,0.06]
[1754397489957,4.29059244,168.18,168.16,0.06]
[1754397490157,0.67,168.24,168.17,0.71]
[1754397490339,14.4285667,168.23,168.16,0.06]
[1754397490543,10.13812336,168.21,168.16,10.19812336]
[1754397490743,4.29044334,168.2,168.16,0.06]
[1754397490971,14.4285667,168.19,168.16,0.06]
[1754397491169,4.29042424,168.18,168.16,0.06]
[1754397491463,20.37486576,168.17,168.16,0.06]
[1754397491668,21.04486576,168.17,168.16,0.06]
[1754397491854,15.09850197,168.17,168.16,0.06]
[1754397492367,21.04486576,168.17,168.16,0.06]
[1754397492568,15.09850197,168.17,168.16,0.06]
[1754397492939,14.42850197,168.17,168.16,0.06]
[1754397493134,4.29037861,168.17,168.16,0.06]
[1754397494547,14.42850197,168.17,168.16,0.06]
[1754397494959,15.09850197,168.17,168.16,0.06]
[1754397495150,21.04486576,168.17,168.16,0.06]
[1754397495466,15.09914622,168.17,168.16,0.06]
[1754397495670,21.04551001,168.17,168.16,0.06]
[1754397496666,14.42932417,168.17,168.16,0.06]
[1754397496855,15.09932417,168.17,168.16,0.06]
[1754397497050,4.29120081,168.17,168.16,0.06]
[1754397497261,10.13812336,168.19,168.16,0.06]
[1754397497449,4.29107793,168.18,168.16,0.06]
[1754397497869,0.67,168.22,168.16,10.19812336]
[1754397498049,4.29276326,168.21,168.16,10.90812336]
[1754397498244,10.13812336,168.18,168.16,0.06]
[1754397498484,10.80812336,168.18,168.16,0.06]
[1754397498850,15.10089168,168.17,168.16,0.06]
[1754397499176,15.10073374,168.17,168.16,0.06]
[1754397499479,21.04709753,168.17,168.16,0.06]
[1754397501563,39.77583681,168.17,168.1,9.41890211]
[1754397501779,8.82544017,168.16,168.1,9.41890211]
[1754397501946,196.96247858,168.15,168.1,9.41890211]
[1754397502145,10.13812336,168.11,168.1,9.41890211]
[1754397502448,15.10621557,168.1,167.99,0.71]
[1754397502671,4.96247858,168.09,167.99,0.71]
[1754397502976,10.13812336,168.05,167.96,43.94]
[1754397503178,10.13812336,168.03,167.94,5.95450756]
[1754397503475,0.67,168.02,167.94,5.95450756]
[1754397503678,6.62060993,168.05,167.95,0.71]
[1754397503878,4.28209974,168.04,167.98,10.13812336]
[1754397504084,0.67,168.08,167.99,0.71]
[1754397504265,10.13812336,168.0,167.94,0.71]
[1754397504577,10.13812336,167.95,167.86,24.54626469]
[1754397504755,0.67,167.94,167.84,10.13812336]
[1754397504954,10.13812336,167.89,167.85,0.71]
[1754397505291,10.13812336,167.89,167.77,42.38894674]
[1754397505292,0.67,167.88,167.82,5.95876534]
[1754397505578,10.13812336,167.88,167.83,10.13812336]
[1754397505794,26.0,167.94,167.82,10.13812336]
[1754397505795,10.13812336,167.87,167.82,10.13812336]
[1754397505952,10.13812336,167.85,167.81,5.95912043]
[1754397506287,10.13812336,167.85,167.79,0.71]
[1754397506463,0.67,167.87,167.8,10.13812336]
[1754397506683,44.2,167.92,167.81,10.13812336]
[1754397506986,24.88190908,167.99,167.82,0.71]
[1754397507193,58.92424623,167.98,167.88,10.13812336]
[1754397507416,4.92175003,167.97,167.91,10.13812336]